[Event "Emanuel Lasker Open 2017"]
[Site "Gorzow"]
[Date "2017.06.19"]
[Round "8"]
[White "Lukasiewicz, Krzysztof"]
[Black "Jankowiak, Tomasz"]
[Result "1-0"]
[ECO "B87"]
[WhiteElo "2098"]
[BlackElo "1903"]
[Annotator "NA RC"]
[PlyCount "83"]
[EventDate "2017.??.??"]
[EventType "swiss"]
[EventCountry "POL"]
[SourceTitle "playchess.com"]
[Source "ChessBase"]
[SourceQuality "1"]
[TimeControl "40/5400+30:1800+30"]

1. e4 {[%emt 0:00:46]} c5 {[%emt 0:00:26]} 2. Nf3 {[%emt 0:00:12]} d6 {[%emt 0:00:04]} 3. d4 {[%emt 0:00:02]} cxd4 {[%emt 0:00:12]} 4. Nxd4 {[%emt 0:00:02]} Nf6 {[%emt 0:00:13]} 5. Nc3 {[%emt 0:00:03]} a6 {[%emt 0:00:04]} 6. Bc4 {[%emt 0:00:02]} e6 {[%emt 0:00:05]} 7. Bb3 {[%emt 0:00:02]} b5 {[%emt 0:00:05]} 8. O-O {[%emt 0:00:07]} Be7 {[%emt 0:00:05]} 9. Qf3 {[%emt 0:00:03]} Qc7 {[%emt 0:00:21]} 10. Qg3 {[%emt 0:00:19]} O-O {[%emt 0:00:14]} 11. Bh6 {[%emt 0:00:02]} Ne8 {[%emt 0:00:04]} 12. Rad1 {[%emt 0:00:06]} Bd7 {[%emt 0:00:04]} 13. Nf3 {[%emt 0:00:09]} Nc6 {[%emt 0:00:48] B87: Sicilian Scheveningen/Najdorf: 6 Bc4, with early ...b5} 14. Bf4 {[%emt 0:01:10]} Qb7 {[%emt 0:01:26]} 15. Rfe1 {[%emt 0:00:38]} b4 {[%emt 0:12:17]} 16. Ne2 {[%emt 0:03:30] [#]} a5 $146 {[%emt 0:06:09]} ({Predecessor:} 16... e5 17. Bg5 Be6 18. Nh4 Na5 19. Bd5 Bxd5 20. Rxd5 Bxg5 21. Qxg5 {½-½ (38) Kasparov,G (2805)-Gelfand,B (2680) Moscow 1994}) 17. Bg5 {[%emt 0:27:56]} Bxg5 {[%emt 0:04:14]} 18. Qxg5 {[%emt 0:01:39]} a4 {[%emt 0:32:43]} 19. Bc4 {[%emt 0:02:47]} Qc7 {[%emt 0:00:13]} 20. Nf4 {[%emt 0:12:17]} Nf6 {[%emt 0:04:07]} 21. Bf1 {[%emt 0:11:07]} Rfd8 {[%emt 0:00:55]} 22. Nh5 {[%emt 0:05:12]} Nxh5 {[%emt 0:01:20]} 23. Qxh5 Be8 {[%emt 0:01:29]} 24. Qh4 {[%emt 0:03:34]} Ne5 {[%emt 0:10:06]} 25. Nd4 {[%emt 0:02:51]} Nc4 {[%emt 0:00:28]} 26. Rd3 {[%emt 0:02:48]} Nxb2 {[%emt 0:12:00] [#]} (26... Qc5 $15) 27. Rh3 $1 {[%emt 0:05:53]} h6 {[%emt 0:00:02] [#]} 28. Ree3 $1 {[%emt 0:00:35]} Qc5 $1 {[%emt 0:02:04]} 29. e5 {[%emt 0:00:54]} Kf8 $1 {[%emt 0:09:21]} ({Avoid the trap} 29... dxe5 $2 30. Reg3 $18) 30. Qf4 {[%emt 0:06:49]} Qd5 {[%emt 0:02:38]} 31. exd6 {[%emt 0:02:28]} Rxd6 {[%emt 0:00:01] [#]} 32. Nxe6+ $1 {[%emt 0:00:28]} Rxe6 {[%emt 0:00:39]} 33. Rxe6 {[%emt 0:00:23]} Qxe6 {[%emt 0:00:31]} 34. Qxb4+ {[%emt 0:00:05]} Kg8 {[%emt 0:00:06]} 35. Qxb2 {[%emt 0:00:04]} Bc6 {[%emt 0:01:45]} 36. Rg3 {[%emt 0:01:44]} g6 {[%emt 0:00:07]} 37. Qc3 {[%emt 0:00:45]} Re8 {[%emt 0:00:58]} 38. h4 {[%emt 0:01:43]} h5 {[%emt 0:00:19]} 39. Qc5 {[%emt 0:00:29]} Qd5 {[%emt 0:00:41]} 40. Rxg6+ {[%emt 0:00:00]} fxg6 {[%emt 0:00:01]} 41. Bc4 {[%emt 0:04:28]} Re5 {[%emt 0:02:15]} 42. Qxc6 $18 {[%emt 0:00:25]} 1-0

[Event "Emanuel Lasker Open 2017"]
[Site "Gorzow"]
[Date "2017.06.19"]
[Round "8"]
[White "Knapik, Julia"]
[Black "Chyzy, Jakub"]
[Result "0-1"]
[ECO "C91"]
[WhiteElo "1627"]
[BlackElo "1838"]
[Annotator "NA RC"]
[PlyCount "64"]
[EventDate "2017.??.??"]
[EventType "swiss"]
[EventCountry "POL"]
[SourceTitle "playchess.com"]
[Source "ChessBase"]
[SourceQuality "1"]
[TimeControl "40/5400+30:1800+30"]

1. e4 {[%emt 0:00:00]} e5 {[%emt 0:00:06]} 2. Nf3 {[%emt 0:00:00]} Nc6 {[%emt 0:00:07]} 3. Bb5 {[%emt 0:00:00]} a6 {[%emt 0:00:07]} 4. Ba4 {[%emt 0:00:00]} Nf6 {[%emt 0:00:05]} 5. O-O {[%emt 0:00:00]} Be7 {[%emt 0:00:07]} 6. Re1 {[%emt 0:01:05]} b5 {[%emt 0:00:06]} 7. Bb3 {[%emt 0:00:19]} d6 {[%emt 0:00:05]} 8. c3 {[%emt 0:01:02]} O-O {[%emt 0:00:19]} 9. d4 {[%emt 0:03:07]} Bg4 {[%emt 0:00:41]} 10. Be3 {[%emt 0:06:47]} exd4 {[%emt 0:18:06]} 11. cxd4 {[%emt 0:01:45]} Na5 {[%emt 0:01:05]} 12. Bc2 {[%emt 0:03:40]} Nc4 {[%emt 0:00:31]} 13. Bc1 {[%emt 0:00:17]} c5 {[%emt 0:02:11]} 14. b3 {[%emt 0:05:57]} Nb6 {[%emt 0:01:24]} 15. d5 {[%emt 0:03:29]} Nfd7 {[%emt 0:03:47]} 16. Qd3 {[%emt 0:01:08]} Bxf3 {[%emt 0:11:09]} 17. Qxf3 {[%emt 0:06:50]} Bf6 {[%emt 0:03:06]} 18. Nc3 {[%emt 0:14:09]} b4 {[%emt 0:06:21]} 19. e5 {[%emt 0:07:56]} Nxe5 {[%emt 0:11:11]} 20. Qh3 {[%emt 0:01:46]} Ng6 {[%emt 0:00:57]} 21. Bxg6 {[%emt 0:00:23]} fxg6 {[%emt 0:01:09]} 22. Ne4 {[%emt 0:00:28]} Bxa1 {[%emt 0:02:50]} 23. Ng5 {[%emt 0:02:42]} h6 {[%emt 0:01:39]} 24. Qe6+ {[%emt 0:08:36]} Kh8 {[%emt 0:01:26]} 25. Qxg6 {[%emt 0:02:34]} hxg5 {[%emt 0:02:54]} 26. Re3 {[%emt 0:02:53]} Bf6 {[%emt 0:03:45]} 27. Qf5 {[%emt 0:02:04]} Qd7 {[%emt 0:02:36]} 28. Rh3+ {[%emt 0:00:39]} Kg8 {[%emt 0:00:09]} 29. Qh7+ {[%emt 0:00:24]} Kf7 {[%emt 0:00:13]} 30. Qh5+ {[%emt 0:02:03]} Ke7 {[%emt 0:00:38]} 31. Bxg5 {[%emt 0:00:23]} Kd8 {[%emt 0:00:44]} 32. Bxf6+ {[%emt 0:00:28]} Rxf6 {[%emt 0:00:35]} 0-1